Cogmind - Beta 13 X1 @@@ ROGUE MODE // 2023.10.03 @ 01:32:38 Player: deadnoob Result: Destroyed by D-53 Grenadier with Mini Grenade Launcher Performance ------------- Evolutions (0) 0 Regions Visited (2) 400 Robots Destroyed (10) 50 Value Destroyed (231) 231 Prototype IDs (0) 0 Alien Tech Used (0) 0 Bonus (0) 0 TOTAL SCORE: 681 Bonus ------- None Cogmind --------- Core Integrity 0/250 Matter 272/300 Energy 99/100 System Corruption 0% Temperature Warm (104) Movement Core (50) Location -10/Mines Parts ------- > --- POWER (1) -------- (None) > --- PROPULSION (2) --- (None) > --- UTILITY (2) ------ (None) > --- WEAPON (2) ------- (None) > --- INVENTORY (5) ---- Improved Heat Sink Cargo Storage Unit Light Assault Rifle Mining Laser Peak State ------------ > --- POWER ------------ Light Nuclear Core > --- PROPULSION ------- Light Treads Light Treads > --- UTILITY ---------- High-capacity Storage Unit Structural Scanner > --- WEAPON ----------- Beamcaster Heavy Assault Rifle > --- INVENTORY -------- Improved Ion Engine Light Treads Light Treads Light Treads Improved Heat Sink Improved Heat Sink Cargo Storage Unit Weapon Shielding Weapon Shielding Light Armor Plating Assault Rifle Light Assault Rifle Light Assault Rifle Datajack Mining Laser [Rating: 16] Favorites ----------- Power Light Nuclear Core Engine Light Ion Engine Power Core Light Nuclear Core Propulsion Light Treads Treads Light Treads Leg Aluminum Leg Utility Structural Scanner Device Structural Scanner Storage Small Storage Unit Protection Weapon Shielding Weapon Light Assault Rifle Energy Gun Beamcaster Ballistic Gun Light Assault Rifle Build | -11 -10 -10 ------- Run | Jun Mat Min Slots Evolved . | . . . Power . | . . . Propulsion . | . . . Utility . | . . . Weapon . | . . . Parts Attached 14 | . 2 12 Power 3 | . 1 2 Engine 1 | . . 1 Core 2 | . 1 1 Reactor . | . . . Propulsion 3 | . . 3 Treads 3 | . . 3 Leg . | . . . Wheel . | . . . Hover . | . . . Flight . | . . . Utility 3 | . 1 2 Device 1 | . 1 . Storage 1 | . . 1 Processor . | . . . Hackware . | . . . Protection 1 | . . 1 Artifact . | . . . Weapon 5 | . . 5 Energy Gun 1 | . . 1 Energy Cannon . | . . . Ballistic Gun 4 | . . 4 Ballistic Cannon . | . . . Launcher . | . . . Special Weapon . | . . . Impact Weapon . | . . . Slashing Weapon . | . . . Piercing Weapon . | . . . Special Melee Weapon . | . . . Unidentified Prototypes . | . . . Parts Lost 6 | . . 6 Power 1 | . . 1 Propulsion 1 | . . 1 Utility 1 | . . 1 Weapon 3 | . . 3 Highest Loss Streak 6 | . . 6 To Critical Strikes . | . . . Average Slot Usage (%) 98 | . 96 99 Engine 5 | . 11 2 Core 8 | . 2 11 Treads 15 | . . 22 Leg 12 | . 28 5 Device 12 | . 10 13 Storage 14 | . 14 14 Ballistic Gun 27 | . 28 27 Naked Turns . | . . . Heaviest Build 54 | 11 14 54 Greatest Support 40 | 20 20 40 Greatest Overweight (x) 1 | . . 1 Average Overweight (x) . | . . . Largest Inventory Capacity 20 | . 8 20 Average Capacity 11 | . 8 13 Most Carried 19 | . 8 19 Average Carried 9 | . 6 10 Final Capacity 8 | 8 8 5 Final Carried 6 | 6 6 5 Class Distribution -------------------- 100% | Mutant Dominant Class ---------------- Mutant | -10/Materials Mutant | -10/Mines Resources | -11 -10 -10 ----------- Run | Jun Mat Min Matter Collected 423 | 165 110 148 Remotely . | . . . Salvage Created 345 | . 203 142 Parts 19 | . 9 10 Haulers Intercepted . | . . . Recyclers Shooed 1 | . 1 . Parts Field Recycled . | . . . Retrieved Matter . | . . . Parts Self-Destructed . | . . . Prevented . | . . . Kills | -11 -10 -10 ------- Run | Jun Mat Min Combat Hostiles Destroyed 9 | . 4 5 Guns 9 | . 4 5 Classes Destroyed 3 | . 3 . Recycler 1 | . 1 . Swarmer 5 | . 2 3 Grunt 4 | . 2 2 Best Kill Streak 3 | . 3 3 Combat Bots Only 3 | . 3 3 Max Kills in Single Turn 1 | . 1 1 Gunslinging . | . . . Exploded . | . . . Melee . | . . . Uniques/NPCs Destroyed . | . . . Combat | -11 -10 -10 -------- Run | Jun Mat Min Damage Taken 1196 | . 180 1016 Core 250 | . 60 190 Absorbed by Shields . | . . . Redirected to Shielding 35 | . . 35 Core Remaining (%) 100 | 100 . . Volleys Fired 38 | . 16 22 Largest 2 | . 2 2 Hottest 98 | . 40 98 Shots Fired 74 | . 32 42 Gun 74 | . 32 42 Cannon . | . . . Launcher . | . . . Special . | . . . Kinetic 71 | . 32 39 Thermal 3 | . . 3 Explosive . | . . . Electromagnetic . | . . . Robot Hit Streak 12 | . 10 12 Robot Miss Streak 3 | . 3 2 Penetration Max . | . . . Secondary Targets 2 | . . 2 Max Gunslinging Chain 1 | . . 1 Shots Hit Robots 50 | . 20 30 Core Hits 26 | . 14 12 Critical Kills . | . . . Critical Parts Destroyed . | . . . Critical Strikes . | . . . Melee Attacks . | . . . Impact . | . . . Slashing . | . . . Piercing . | . . . Sneak Attacks . | . . . Combat Hostiles . | . . . Follow-up Attacks . | . . . Damage Inflicted 668 | . 291 377 Guns 636 | . 271 365 Cannons . | . . . Explosions . | . . . Melee . | . . . Ramming 32 | . 20 12 Kinetic 591 | . 271 320 Thermal 45 | . . 45 Explosive . | . . . Electromagnetic . | . . . Impact . | . . . Slashing . | . . . Piercing . | . . . Highest Corruption . | . . . Average Corruption . | . . . Corruption Purged . | . . . Corruption Blocked . | . . . Overload Shots . | . . . Overflow Damage . | . . . Projectiles . | . . . Explosions . | . . . Melee . | . . . Knockbacks . | . . . Impact . | . . . Kinetic . | . . . Secondary . | . . . Self-Inflicted Damage . | . . . Shots . | . . . Rammed 1 | . . 1 Targets Rammed 5 | . 4 1 Kicked 4 | . 4 . Crushed . | . . . Highest Temperature 104 | . 18 104 Average Temperature 14 | . 7 16 Received Heat Transfer 147 | . 66 81 Siege Activations . | . . . Robots Corrupted . | . . . Combat Hostiles . | . . . Parts Fried . | . . . Impact Corruptions . | . . . Robots Melted . | . . . Combat Hostiles . | . . . Parts Melted . | . . . Heat Transferred 74 | . . 74 Parts Sabotaged . | . . . Parts Stolen . | . . . Parts Stripped . | . . . Power Chain Reactions . | . . . Missiles Intercepted . | . . . Alert | -11 -10 -10 ------- Run | Jun Mat Min Peak Influence 164 | . 164 133 Initial 63 | . . 63 Average 85 | . 54 101 Maximum Alert Level . | . . . Low Security (%) 100 | . 100 100 Level 1 . | . . . Level 2 . | . . . Level 3 . | . . . Level 4 . | . . . Level 5 . | . . . High Security . | . . . Max Security . | . . . Squads Dispatched 1 | . 1 . Investigation . | . . . Extermination . | . . . Reinforcement 1 | . 1 . Assault . | . . . Garrison . | . . . Intercept . | . . . Searches Triggered . | . . . Construction Impeded . | . . . Haulers Reinforced . | . . . Active Scanning Responses . | . . . Cargo Convoy Interrupts . | . . . Stealth | -11 -10 -10 --------- Run | Jun Mat Min Distress Signals 4 | . 4 . Communications Jammed . | . . . Distress Signals . | . . . Times Spotted 24 | . 14 10 Peak Tracking Total 5 | . 5 2 Tactical Retreats 1 | . . 1 Traps | -11 -10 -10 ------- Run | Jun Mat Min Traps Triggered . | . . . Indirectly . | . . . Trap Hack Attempts . | . . . Triggered . | . . . Disarmed . | . . . Reprogrammed . | . . . Reused . | . . . Traps Extracted . | . . . Installed . | . . . Triggered . | . . . Machines | -11 -10 -10 ---------- Run | Jun Mat Min Machines Disabled . | . . . Max in Single Turn . | . . . Machines Repaired . | . . . Machines Sabotaged . | . . . Overloaded Fab Kills . | . . . Hacking | -11 -10 -10 --------- Run | Jun Mat Min Machines Accessed 2 | . 2 . Terminals 2 | . 2 . Fabricators . | . . . Repair Stations . | . . . Recycling Units . | . . . Scanalyzers . | . . . Garrison Access . | . . . Total Hacks 13 | . 13 . Successful 6 | . 6 . Failed 7 | . 7 . Catastrophic 1 | . 1 . Database Lockouts . | . . . Manual 9 | . 9 . Terminals 13 | . 13 . Fabricators . | . . . Repair Stations . | . . . Recycling Units . | . . . Scanalyzers . | . . . Garrison Access . | . . . Terminal Hacks 6 | . 6 . Part Schematic 1 | . 1 . Robot Analysis 3 | . 3 . Hauler Manifests 1 | . 1 . Zone Layout 1 | . 1 . Fabricator Hacks . | . . . Repair Station Hacks . | . . . Recycling Unit Hacks . | . . . Scanalyzer . | . . . Garrison Access Hacks . | . . . Unauthorized Hacks . | . . . Terminals . | . . . Fabricators . | . . . Repair Stations . | . . . Recycling Units . | . . . Scanalyzers . | . . . Garrison Access . | . . . Data Cores Recovered . | . . . Used . | . . . Hacking Detections 2 | . 2 . Full Trace Events . | . . . Feedback Events . | . . . Feedback Blocked . | . . . Robot Schematics Acquired . | . . . Robots Built . | . . . Authchips . | . . . Time . | . . . Total Robot Build Rating . | . . . Part Schematics Acquired 1 | . 1 . Parts Built . | . . . Authchips . | . . . Time . | . . . Total Part Build Rating . | . . . Parts Repaired . | . . . Time . | . . . Parts Recycled . | . . . Recycled Matter . | . . . Retrieved Matter . | . . . Retrieved Components . | . . . Parts Scanalyzed . | . . . Part Schematics Acquired . | . . . Parts Damaged . | . . . Bothacking | -11 -10 -10 ------------ Run | Jun Mat Min Used RIF Installer . | . . . Robots Hacked . | . . . Non-combat . | . . . Combat . | . . . Robot Hacks Applied . | . . . Relay Couplers Released . | . . . Fabnet Peak Effective % . | . . . Robots Rewired . | . . . Allies Hacked . | . . . Hacks Repelled . | . . . Allies | -11 -10 -10 -------- Run | Jun Mat Min Total Allies . | . . . Largest Group . | . . . Highest-Rated Group . | . . . Highest-Rated Ally . | . . . Total Orders . | . . . Ally Attacks . | . . . Total Damage . | . . . Kills . | . . . Allies Corrupted . | . . . Allies Melted . | . . . Intel | -11 -10 -10 ------- Run | Jun Mat Min Robot Analysis Total 3 | . 3 . Derelict Logs Recovered 1 | . . 1 Drone Launches . | . . . Drone Recoveries . | . . . Exploration | -11 -10 -10 ------------- Run | Jun Mat Min Turns Passed 916 | . 304 612 Spaces Moved 491 | 1 196 294 Core 1 | . . 1 Treads 214 | . . 214 Legs 276 | 1 196 79 Wheels . | . . . Hover . | . . . Flight . | . . . Fastest Speed 50 | 120 120 50 Average Speed 150 | 120 120 171 Slowest Speed 240 | 120 120 240 Overloaded Moves . | . . . Propulsion Burnouts . | . . . Robots Hopped . | . . . Cave-ins Triggered . | . . . Exploration Rate (%) 34 | 2 38 63 Regions Visited 2 Branch Regions 1 Pre-discovered Areas 1 | . . 1 Known Exits Taken . | . . . Unknown Exits Taken 2 | 1 1 . Scrap Searched 1 | . . 1 Spaces Dug . | . . . Terrain Destroyed . | . . . Melee . | . . . Projectile . | . . . AOE . | . . . Terrain Rammed . | . . . Walls Destroyed . | . . . Machines Disabled . | . . . Actions | -11 -10 -10 --------- Run | Jun Mat Min Total 598 | . 235 363 Wait 25 | . 14 11 Move 489 | . 195 294 Hop . | . . . Pick Up 17 | . 1 16 Fast Attach 3 | . 2 1 Attach 5 | . . 5 Detach 1 | . 1 . Swap 6 | . . 6 Drop 9 | . 2 7 Fire 38 | . 16 22 Melee . | . . . Ram . | . . . Kick 4 | . 4 . Crush 1 | . . 1 Escape Stasis . | . . . Rewire . | . . . Trap . | . . . Miscellaneous . | . . . Route ------- -11/Junkyard -10/Materials (discovered 2 exits: [*Min] / [*Sub]) -10/Mines (discovered 1 exit: [Sub]) History --------- Turn | Location | Event 1 | -11/Junkyard | Discovered new exit (range 0) 1 | -11/Junkyard | Entered Materials 107 | -10/Materials | Discovered new exit (range 16) 153 | -10/Materials | Discovered new exit (range 16) 305 | -10/Materials | Entered Mines 306 | -10/Mines | Build established: Mutant 330 | -10/Mines | Discovered new exit (range 8) 394 | -10/Mines | Learned location of Storage (-7) 638 | -10/Mines | Joined a pair of Derelicts in attacking an 0b10 outpost 881 | -10/Mines | Assembled infested the area 902 | -10/Mines | Core integrity fell below 50% 916 | -10/Mines | Core integrity fell below 20% 917 | -10/Mines | Released all parts (5) 917 | -10/Mines | Destroyed by D-53 Grenadier with Mini Grenade Launcher Last Messages --------------- 00832_ Slammed into T-07 Excavator. 00881_ ALERT: Infestation in the mines, dispatching Demolisher response squad. 00899_ C-30 ARC bursts open, deploying its payload. 00899_ D-53 Grenadier unfolds itself. 00900_ Lgt. Treads destroyed. 00902_ Lgt. Assault Rifle destroyed. 00906_ The unstable cave ceiling collapses. 00906_ Lgt. Angular Momentum Engine destroyed. 00909_ Structural Scanner destroyed. 00913_ The unstable cave ceiling collapses. 00913_ Hvy. Assault Rifle destroyed. 00916_ The unstable cave ceiling collapses. 00916_ Beamcaster destroyed. 00917_ The unstable cave ceiling collapses. 00917_ Released Lgt. Treads. 00917_ Released Hcp. Storage Unit. 00917_ Released Lgt. Nuclear Core. 00917_ Released Lgt. Treads. 00917_ Released Weapon Shielding. Map ----- +----------------------------------------------------+ | ????## """ #####????????????????????????????????? | | ????## """ ######